bitfinex/quotes_ETHUSD_20260114
["timestamp","ask_amount","ask_price","bid_price","bid_amount"]
[1768395757401,3.03697392,3292.8,3292.5,0.002]
[1768395757705,11.72088403,3292.8,3292.5,0.002]
[1768395758289,3.03697392,3292.8,3292.5,0.002]
[1768395758807,3.03683683,3292.9,3292.5,0.002]
[1768395759008,0.001,3293.0,3292.5,8.13808431]
[1768395759172,3.03637757,3293.4,3292.5,8.13808431]
[1768395759173,8.68391011,3293.9,3293.0,8.13608431]
[1768395759372,8.68391011,3294.1,3293.2,8.22111187]
[1768395759576,8.68391011,3294.3,3293.2,8.22111187]
[1768395760708,8.68391011,3294.3,3293.4,8.13608431]
[1768395760875,8.68391011,3294.3,3293.4,9.1293338]
[1768395761081,11.71945751,3294.3,3293.4,9.1293338]
[1768395761282,8.68391011,3294.3,3293.4,9.1293338]
[1768395762403,18.09924295,3294.6,3293.5,8.55308431]
[1768395762603,8.68391011,3294.5,3293.7,8.13608431]
[1768395762808,11.71936421,3294.4,3293.6,0.81380843]
[1768395763007,11.71936421,3294.4,3293.7,3.03609664]
[1768395763218,8.68391011,3294.3,3293.7,3.03609664]
[1768395764089,8.68391011,3294.3,3293.6,3.84999691]
[1768395764491,8.68391011,3294.3,3293.6,0.81380843]
[1768395764719,8.68391011,3294.3,3293.5,11.58933448]
[1768395764923,3.03563839,3294.2,3293.5,11.58933448]
[1768395765131,0.16,3295.5,3293.6,5.61405564]
[1768395765295,0.001,3294.0,3293.6,5.61405564]
[1768395765624,0.416,3294.8,3293.7,0.90673058]
[1768395765821,5.52902808,3294.6,3293.5,6.07253375]
[1768395765989,5.52902808,3294.6,3293.5,3.03625017]
[1768395766709,5.52902808,3294.6,3293.2,0.417]
[1768395767094,6.07072392,3294.5,3293.3,3.03646798]
[1768395767294,1.1599752,3294.4,3293.3,3.03646798]
[1768395767529,0.416,3294.3,3293.3,6.07293596]
[1768395768026,0.416,3294.3,3293.2,6.49009119]
[1768395769431,3.03563839,3294.2,3293.2,6.49009119]
[1768395769732,3.03563839,3294.2,3293.3,0.417]
[1768395770324,3.03563839,3294.2,3293.3,1.06601766]
[1768395771793,6.07127678,3294.2,3293.4,3.03637578]
[1768395771999,3.03563839,3294.2,3293.3,4.10244293]
[1768395772199,6.07127678,3294.2,3293.3,4.10244293]
[1768395772622,3.03563839,3294.2,3293.3,7.13891091]
[1768395775031,6.71998881,3294.2,3293.3,1.06601766]
[1768395775233,6.71998881,3294.2,3293.3,3.03645764]
[1768395775899,6.71998881,3294.2,3293.2,0.417]
[1768395776103,5.52902808,3294.1,3293.0,0.417]
[1768395776308,1.22490169,3294.0,3293.1,3.03660383]
[1768395776637,3.03591487,3293.9,3293.1,3.03660383]
[1768395777730,3.03591487,3293.9,3293.3,0.002]
[1768395778701,3.45191487,3293.9,3293.3,0.002]
[1768395778950,0.416,3293.9,3293.3,0.002]
[1768395779150,4.26075989,3294.0,3293.3,0.002]
[1768395779151,0.416,3294.0,3293.3,0.002]
[1768395781547,3.45188063,3294.0,3293.3,0.002]
[1768395782539,6.48776126,3294.0,3293.3,0.002]
[1768395782749,15.05266997,3294.0,3293.3,0.002]
[1768395782913,15.05266997,3294.0,3293.0,0.002]
[1768395782914,5.52902808,3293.7,3293.0,0.002]
[1768395783114,0.416,3293.6,3293.0,0.002]
[1768395783318,0.59450281,3293.5,3293.0,0.002]
[1768395783507,3.03637578,3293.4,3293.0,0.002]
[1768395786412,3.63081991,3293.5,3293.0,0.002]
[1768395787746,12.19616509,3293.5,3293.0,0.002]
[1768395788045,15.23248219,3293.5,3292.5,0.002]
[1768395788246,1.26121651,3293.4,3292.5,0.002]
[1768395788555,6.07293596,3293.3,3292.5,0.002]
[1768395789826,0.416,3293.2,3292.5,0.002]
[1768395790030,3.03665239,3293.1,3292.5,0.002]
[1768395790226,0.64892871,3293.0,3292.5,0.002]
[1768395791647,0.64892871,3293.0,3292.2,0.002]
[1768395792447,6.07367366,3292.9,3292.2,0.002]
[1768395792628,0.416,3292.8,3292.2,0.002]
[1768395795234,3.03702128,3292.7,3292.2,0.002]
[1768395795854,6.07404256,3292.7,3292.2,0.002]
[1768395796055,3.68602554,3292.7,3292.2,0.002]
[1768395796851,6.72304682,3292.7,3292.2,0.002]
[1768395798526,3.68602554,3292.7,3292.2,0.002]
[1768395799826,6.72304682,3292.7,3292.2,0.002]
[1768395800359,3.68602554,3292.7,3292.2,0.002]
[1768395800527,0.71389638,3292.6,3292.2,0.002]
[1768395801652,3.03720577,3292.5,3292.2,0.002]
[1768395803259,3.75103929,3292.6,3292.2,0.002]
[1768395804042,6.7881822,3292.6,3292.2,0.002]
[1768395804446,6.7881822,3292.6,3292.1,0.002]
[1768395804740,0.67881822,3292.5,3292.1,0.002]
[1768395804940,0.67881822,3292.5,3291.9,0.002]
[1768395806434,6.49059602,3292.4,3291.9,0.002]
[1768395806871,6.49059602,3292.4,3291.6,0.002]
[1768395809739,5.52902808,3291.7,3290.9,0.002]
[1768395809950,0.416,3291.7,3290.9,0.002]
[1768395811174,6.07607242,3291.6,3290.9,0.002]
[1768395813875,9.11410863,3291.6,3290.7,0.002]
[1768395814048,0.95301086,3291.5,3290.7,0.002]
[1768395814755,0.95301086,3291.5,3290.5,0.002]
[1768395814756,6.48203894,3291.5,3290.5,0.002]
[1768395814950,9.11466243,3291.4,3290.5,0.002]
[1768395815470,6.07644162,3291.4,3291.2,0.002]
[1768395815768,9.11466243,3291.4,3290.9,0.002]
[1768395815970,1.00676733,3291.3,3290.9,0.002]
[1768395816171,0.417,3291.2,3290.9,0.002]
[1768395816371,0.417,3291.2,3290.5,0.002]
[1768395817478,6.07699552,3291.1,3290.5,0.002]
[1768395818047,9.11549328,3291.1,3289.5,0.002]
[1768395818252,0.95324933,3291.0,3290.3,0.08502756]
[1768395818474,0.417,3291.7,3290.5,0.08502756]
[1768395818663,0.417,3291.7,3290.7,0.08502756]
[1768395818868,0.417,3291.7,3290.5,0.08502756]
[1768395819177,0.417,3291.7,3290.5,0.50202756]
[1768395819386,6.07607242,3291.6,3290.5,3.54106845]
[1768395819557,6.07607242,3291.6,3290.6,0.35410685]
[1768395819976,6.07607242,3291.6,3290.7,0.08502756]
[1768395820155,6.07607242,3291.6,3290.6,0.35410685]
[1768395820482,6.07607242,3291.6,3290.7,0.08502756]
[1768395820789,3.03803621,3291.6,3290.8,0.1154153]
[1768395820963,0.417,3292.3,3291.0,0.08502756]
[1768395821155,0.417,3292.3,3291.2,0.08502756]
[1768395821357,6.07496506,3292.2,3291.2,3.12342496]
[1768395821580,9.11244759,3292.2,3291.0,0.57399402]
[1768395821774,9.11244759,3292.2,3290.9,0.417]
[1768395821966,0.417,3292.1,3290.9,3.54069898]
[1768395823588,6.07533414,3292.0,3291.0,3.03854594]
[1768395823788,6.07533414,3292.0,3291.1,0.08502756]
[1768395825477,6.07533414,3292.0,3291.0,0.417]
[1768395825684,6.07533414,3292.0,3291.0,3.80965362]
[1768395825887,6.07533414,3292.0,3291.0,0.77106839]
[1768395826068,6.07533414,3292.0,3291.0,3.80963444]
[1768395828100,0.001,3291.7,3291.0,3.80963444]
[1768395828632,0.001,3291.7,3290.8,0.002]
[1768395829094,0.001,3291.7,3290.8,3.04073845]
[1768395829277,0.001,3291.7,3290.9,3.03868173]
[1768395829473,0.001,3291.7,3291.0,3.12360371]
[1768395829679,0.001,3291.7,3291.1,0.03038497]
[1768395829879,0.001,3291.7,3291.2,3.35380431]
[1768395830399,0.417,3292.3,3291.2,3.35380431]
[1768395830400,3.0374315,3292.3,3291.3,0.11541069]
[1768395830568,3.03635873,3293.5,3291.7,0.08502756]
[1768395830569,6.0734892,3293.0,3291.7,0.08502756]
[1768395830768,6.4904892,3293.0,3291.9,0.08502756]
[1768395831696,6.4904892,3293.0,3292.0,0.417]
[1768395831869,6.0738581,3292.8,3291.9,3.12277441]
[1768395832070,6.0738581,3292.8,3291.9,3.53977441]
[1768395832498,9.11078715,3292.8,3291.7,0.417]
[1768395833501,6.0738581,3292.8,3291.7,0.417]
[1768395833704,6.0738581,3292.8,3291.7,0.50202756]
[1768395833882,6.07422704,3292.6,3291.8,3.03783019]
[1768395834081,3.03694232,3292.8,3291.8,3.03783019]
[1768395834287,6.07388464,3292.8,3291.8,3.03783019]
[1768395834475,6.07388464,3292.8,3291.8,3.12285775]
[1768395834676,3.03694232,3292.8,3291.8,6.16070938]
[1768395835002,6.07388464,3292.8,3291.8,3.70410388]
[1768395836806,6.07388464,3292.8,3291.8,0.417]
[1768395837004,9.11082696,3292.8,3291.8,0.417]
[1768395837206,9.11082696,3292.8,3291.2,0.31539887]
[1768395837505,9.11082696,3292.8,3290.5,0.08702756]
[1768395837506,9.11082696,3292.8,3291.3,3.45525388]
[1768395837669,9.11082696,3292.8,3291.4,3.03821631]
[1768395838108,12.14776928,3292.8,3291.3,0.417]
[1768395839107,12.14776928,3292.8,3291.0,0.4473859]
[1768395839309,12.14776928,3292.8,3290.9,3.06898174]
[1768395839606,1.25647693,3292.7,3291.0,3.45550628]
[1768395840195,1.25647693,3292.7,3291.0,3.03850628]
[1768395840394,1.25647693,3292.7,3291.0,3.45550628]
[1768395840582,0.001,3292.5,3290.8,0.002]
[1768395840782,9.11217081,3292.3,3290.8,3.04076511]
[1768395840982,0.95281708,3292.2,3290.8,3.04076511]
[1768395841994,0.95281708,3292.2,3290.8,6.07953987]
[1768395842200,0.95281708,3292.2,3290.8,6.10992761]
[1768395842710,0.417,3292.1,3290.8,6.10992761]
[1768395842902,12.15066828,3292.0,3290.8,0.002]
[1768395843102,1.25676683,3291.9,3290.8,0.002]
[1768395845029,9.11355489,3291.8,3290.8,0.002]
[1768395846791,12.15140652,3291.8,3290.8,0.002]
[1768395848120,0.417,3291.7,3290.8,0.002]
[1768395849021,6.07570326,3291.8,3290.8,0.002]
[1768395849231,6.49270326,3291.8,3290.8,0.002]
[1768395849754,3.03729801,3292.4,3290.9,0.03038682]
[1768395850021,0.7208298,3292.3,3291.0,0.08502756]
[1768395850221,6.07496506,3292.2,3291.1,6.07699552]
[1768395850422,6.07496506,3292.2,3291.2,0.03038405]
[1768395850612,6.49196506,3292.2,3291.1,6.10738049]
[1768395850996,6.49196506,3292.2,3291.1,3.03849776]
[1768395851208,6.49196506,3292.2,3291.2,0.30384978]
[1768395851392,9.52944759,3292.2,3291.0,3.03858346]
[1768395851712,9.52944759,3292.2,3290.8,3.07115984]
[1768395851713,9.52944759,3292.2,3290.8,0.03238774]
[1768395852025,9.52944759,3292.2,3290.8,0.002]
[1768395852520,9.52944759,3292.2,3291.1,0.002]
[1768395852822,0.001,3291.9,3291.1,0.002]
[1768395858709,0.001,3291.9,3290.8,1e-08]
[1768395863041,0.417,3291.8,3290.8,1e-08]
[1768395863468,12.15177564,3291.7,3290.8,1e-08]
[1768395864665,0.9883521,3291.4,3290.8,1e-08]
[1768395864866,0.9883521,3291.2,3290.8,1e-08]
[1768395865885,3.03849776,3291.1,3290.8,1e-08]
[1768395866936,1.4053521,3291.0,3290.5,0.002]
[1768395867147,0.9883521,3290.9,3290.1,0.69423903]
[1768395867553,1.73658686,3290.9,3290.1,0.69423903]
[1768395868267,7.06590162,3290.8,3290.1,0.69423903]
[1768395868463,7.06590162,3290.8,3289.9,3.73378858]
[1768395869165,7.06590162,3290.8,3290.0,0.69423903]
[1768395870267,0.9883521,3290.7,3290.0,0.69423903]
[1768395870469,6.07754952,3290.8,3290.0,0.69423903]
[1768395871243,7.06590162,3290.8,3290.0,0.69423903]
[1768395871457,7.88901526,3290.8,3290.0,0.69423903]
[1768395872972,0.9883521,3290.7,3290.0,0.69423903]
[1768395873169,0.9883521,3290.7,3289.8,3.73389459]
[1768395873371,3.8618884,3290.8,3290.0,3.73373582]
[1768395873568,3.03877476,3290.8,3290.1,0.69423903]
[1768395873872,6.07754952,3290.8,3290.1,0.69423903]
[1768395876744,0.9883521,3290.7,3289.9,0.69423903]
[1768395876967,0.9883521,3290.7,3290.4,0.002]
[1768395877153,0.9883521,3290.6,3290.4,0.002]
[1768395877881,0.70659016,3290.7,3290.4,0.002]
[1768395878583,3.03895946,3290.6,3290.4,0.002]
[1768395880178,3.03877476,3290.8,3290.4,0.002]
[1768395880681,3.03877476,3290.8,3290.4,0.69623903]
[1768395883082,6.07736484,3290.9,3290.4,0.69623903]
[1768395883390,6.07736484,3290.9,3290.4,0.002]
[1768395886604,6.82563653,3290.9,3290.4,0.002]
[1768395886895,0.9883521,3290.8,3290.4,0.002]
[1768395887903,0.9883521,3290.8,3290.1,0.002]
[1768395888620,0.9883521,3290.6,3290.1,0.002]
[1768395888900,0.9883521,3290.5,3290.1,0.002]
[1768395889800,0.9883521,3290.5,3289.7,0.69423903]
[1768395890301,0.9883521,3290.5,3290.4,0.002]
[1768395890501,1.73666073,3290.5,3290.1,0.002]
[1768395890673,3.03914417,3290.4,3290.1,0.002]
[1768395891699,4.02743326,3290.5,3290.1,0.002]
[1768395891868,3.03908116,3290.5,3290.1,0.002]
[1768395892275,3.45599664,3290.6,3290.1,0.002]
[1768395892606,3.03877476,3290.8,3290.1,0.69623903]
[1768395892803,3.03877476,3290.8,3290.1,3.73564838]
[1768395893395,6.07754952,3290.8,3290.1,0.69623903]
[1768395894995,7.02102269,3290.8,3290.1,0.69623903]
[1768395895202,0.94347317,3290.7,3290.1,0.002]
[1768395897195,0.94347317,3290.5,3290.1,0.002]
[1768395898303,3.03895946,3290.6,3290.1,0.002]
[1768395899075,7.02139209,3290.6,3290.1,0.002]
[1768395901863,0.417,3290.7,3289.4,1e-08]
[1768395901864,0.94347317,3290.2,3289.4,1e-08]
[1768395902140,0.94347317,3290.0,3289.4,1e-08]
[1768395902342,0.94347317,3289.9,3289.1,0.002]
[1768395902643,0.94347317,3289.6,3288.7,1e-08]
[1768395902843,0.94347317,3289.4,3288.7,1e-08]
[1768395905253,0.94347317,3289.3,3288.7,1e-08]
[1768395905535,5.54033782,3290.0,3288.7,0.69623904]
[1768395905536,0.94347317,3289.8,3288.7,0.69623904]
[1768395905736,1.36047317,3289.7,3288.7,0.69623904]
[1768395905936,0.94347317,3289.6,3288.8,0.69623903]
[1768395907009,3.03914417,3290.4,3288.9,0.72664433]
[1768395907207,0.94347317,3290.2,3289.1,0.69623903]
[1768395907453,1.36047317,3290.2,3289.3,0.69623903]
[1768395907662,0.001,3290.5,3289.3,0.69623903]
[1768395907663,0.001,3290.5,3289.4,0.78126659]
[1768395907950,0.418,3290.5,3289.7,0.69623903]
[1768395908311,0.94347317,3290.4,3289.5,0.417]
[1768395908752,0.94347317,3290.4,3289.5,3.03996199]
[1768395908923,0.94347317,3290.4,3289.4,3.73628554]
[1768395909254,0.94347317,3290.3,3289.3,0.417]
[1768395909822,0.94347317,3290.1,3288.6,0.69623903]
[1768395910028,3.03932891,3290.2,3288.7,0.69623904]
[1768395910029,0.94347317,3289.9,3288.7,0.69623904]
[1768395910223,0.94347317,3289.9,3288.7,3.73692491]
[1768395910423,0.94347317,3289.9,3288.8,0.69623903]
[1768395912033,0.94347317,3289.7,3288.7,1e-08]
[1768395912217,1.64576018,3289.6,3288.7,0.69623904]
[1768395912417,0.417,3289.5,3288.7,0.69623904]
[1768395913258,1.11928701,3289.6,3288.9,6.23657685]
[1768395913546,1.11928701,3289.6,3288.9,0.69623903]
[1768395915544,0.70228701,3289.6,3288.9,0.3949381]
[1768395915747,0.417,3289.5,3288.9,0.3949381]
[1768395915947,0.417,3289.6,3288.9,0.3949381]
[1768395916119,3.98304788,3290.0,3289.1,5.93527592]
[1768395916315,0.417,3289.7,3289.1,5.93527592]
[1768395916544,0.001,3290.1,3289.2,0.3949381]
[1768395916724,0.001,3290.5,3289.2,0.3949381]
[1768395916725,0.94447317,3290.5,3289.7,5.54033782]
[1768395916924,3.03879566,3290.8,3289.6,0.08502756]
[1768395916925,0.94347317,3290.7,3289.6,5.54033782]
[1768395917147,0.94347317,3290.7,3289.5,0.417]
[1768395918447,0.94347317,3290.7,3289.3,0.417]
[1768395918648,0.94347317,3290.4,3289.3,0.6619381]
[1768395918954,0.94347317,3290.3,3289.3,0.6619381]
[1768395919532,0.94347317,3290.3,3289.3,3.70208648]
[1768395919920,0.94347317,3290.3,3289.0,5.54033782]
[1768395920122,0.94347317,3290.3,3289.1,3.04029025]
[1768395920549,0.94347317,3290.3,3289.1,3.13522835]
[1768395920748,0.9438526,3290.1,3289.1,3.13522835]
[1768395920948,1.34217075,3290.0,3289.1,0.0949381]
[1768395921754,0.9438526,3289.9,3288.9,0.417]
[1768395922054,0.39831815,3290.0,3288.7,0.0949381]
[1768395922055,0.9438526,3289.7,3288.7,0.0949381]
[1768395922258,0.9438526,3289.9,3289.0,3.13537363]
[1768395922551,0.9438526,3289.9,3288.5,3.45784379]
[1768395922552,0.9438526,3289.8,3288.5,3.45784379]
[1768395922752,0.9438526,3289.6,3288.5,3.70022345]
[1768395922950,0.9438526,3289.6,3288.5,4.11722345]
[1768395923250,0.9438526,3289.6,3288.5,4.21216155]
[1768395923632,0.9438526,3289.6,3288.5,0.0949381]
[1768395925443,7.02380396,3289.5,3288.5,0.0949381]
[1768395925631,0.417,3289.4,3288.5,0.0949381]
[1768395927250,0.417,3289.4,3288.8,0.002]
[1768395928061,3.45710079,3289.4,3288.8,0.002]
[1768395928256,0.44019534,3289.3,3288.8,0.002]
[1768395928560,0.001,3289.5,3288.8,0.0969381]
[1768395929558,0.001,3289.5,3288.9,0.0949381]
[1768395929961,0.9438526,3290.2,3289.1,0.0949381]
[1768395930129,0.9438526,3290.4,3289.1,0.0949381]
[1768395930557,0.9438526,3290.4,3289.2,0.0949381]
[1768395930753,6.38,3291.3,3289.6,0.0949381]
[1768395930754,0.9438526,3290.8,3289.6,0.0949381]
[1768395930940,0.9438526,3291.0,3289.8,0.0949381]
[1768395931859,0.9438526,3291.0,3289.9,3.03960606]
[1768395932064,0.9438526,3290.9,3289.9,3.03960606]
[1768395932764,0.9438526,3290.9,3289.8,3.13459771]
[1768395933258,1.34209875,3290.8,3289.8,3.13459771]
[1768395933445,0.9438526,3290.8,3289.8,6.17429617]
[1768395934245,0.9438526,3290.8,3289.8,3.13459771]
[1768395935265,0.9438526,3290.8,3289.8,3.03965961]
[1768395936066,0.9438526,3290.8,3289.8,6.07935807]
[1768395936559,0.9438526,3290.7,3289.7,3.0397596]
[1768395936754,0.9438526,3290.5,3289.7,3.0397596]
[1768395936949,0.9438526,3290.5,3289.6,0.417]
[1768395937152,0.9438526,3290.5,3289.3,3.13508486]
[1768395937341,0.9438526,3290.5,3289.3,0.0949381]
[1768395937547,0.9438526,3290.5,3289.4,3.04005052]
[1768395937754,0.9438526,3290.3,3289.4,3.04005052]
[1768395938150,0.9438526,3290.3,3289.2,6.08049468]
[1768395938541,0.9438526,3290.3,3289.2,6.17543278]
[1768395938736,0.9438526,3290.3,3289.2,3.13517984]
[1768395938941,0.9438526,3290.3,3289.2,6.17543278]
[1768395939360,0.9438526,3290.1,3289.2,3.13517984]
[1768395939677,0.9438526,3290.1,3289.1,3.04033983]
[1768395939842,0.9438526,3290.1,3289.0,3.13534109]
[1768395940181,0.9438526,3289.8,3288.9,3.04047507]
[1768395942170,0.9438526,3289.8,3288.8,3.04262271]
[1768395942374,0.9438526,3289.6,3288.8,3.04262271]
[1768395942760,0.9438526,3289.6,3288.8,0.002]
[1768395945781,0.9438526,3289.6,3288.8,0.0969381]
[1768395946284,0.9438526,3289.6,3288.8,3.13748995]
[1768395946579,0.9438526,3289.8,3288.9,0.0949381]
[1768395946779,0.001,3290.2,3289.1,0.0949381]
[1768395946780,0.417,3289.9,3289.1,0.0949381]
[1768395946965,0.9438526,3290.0,3289.1,0.0949381]
[1768395948583,0.9448526,3290.2,3289.3,0.0949381]
[1768395948759,0.001,3290.2,3289.5,0.0949381]
[1768395949475,0.001,3290.2,3289.6,0.0949381]
[1768395950069,0.9438526,3290.6,3289.7,0.0949381]
[1768395950276,0.417,3290.7,3289.7,0.0949381]
[1768395950653,0.417,3290.7,3289.9,0.92927356]
[1768395951983,0.417,3290.7,3288.7,0.92927356]
[1768395951984,0.91242714,3290.6,3288.7,0.92927356]
[1768395952162,0.91342714,3290.2,3288.8,0.88928237]
[1768395952483,0.91242714,3290.0,3288.9,4.34678413]
[1768395952785,3.03957389,3290.0,3288.9,3.45750176]
[1768395953083,0.91242714,3289.9,3288.9,3.92980872]
[1768395953277,1.63734424,3289.9,3288.9,3.92980872]
[1768395953479,1.63734424,3289.9,3289.0,0.88928237]
[1768395954790,0.7249171,3289.9,3289.0,0.88928237]
[1768395957385,0.417,3290.0,3289.1,0.88928237]
[1768395958104,0.001,3290.2,3289.1,0.88928237]
[1768395958412,0.417,3290.5,3289.7,0.88928237]
[1768395958984,0.91242714,3290.1,3288.2,0.80156584]
[1768395959188,0.91242714,3289.9,3288.6,0.80156584]
[1768395959390,0.91242714,3289.7,3288.6,0.80156584]
[1768395959607,0.91242714,3289.5,3288.6,0.80156584]
[1768395959762,0.91242714,3289.5,3288.4,0.80156584]
[1768395961263,0.91242714,3289.3,3287.5,0.80156584]
[1768395961459,0.91242714,3289.1,3287.7,0.80156584]
[1768395961662,0.91242714,3289.1,3287.8,0.80156584]
[1768395962988,0.91242714,3289.0,3288.0,0.80156584]
[1768395963174,0.91242714,3289.0,3288.0,1.18586793]
[1768395963681,0.91242714,3289.0,3288.0,0.80156584]
[1768395964270,0.91242714,3289.0,3287.8,0.80156584]
[1768395964481,0.91242714,3289.0,3287.8,3.04151668]
[1768395964685,0.91242714,3289.0,3288.4,0.002]
[1768395964995,3.95290414,3289.0,3288.4,0.002]
[1768395965176,0.69932688,3288.9,3288.4,0.002]
[1768395965378,1.61175402,3288.9,3288.4,0.002]
[1768395966374,0.91242714,3288.8,3288.4,0.002]
[1768395966593,0.417,3288.7,3287.9,0.79956184]
[1768395966772,1.32942714,3288.7,3287.9,0.79956184]
[1768395966972,0.91242714,3288.6,3287.6,3.04169302]
[1768395967295,0.91242714,3288.6,3287.7,3.84118791]
[1768395967478,0.6198754,3288.7,3287.8,0.79956184]
[1768395969270,3.66059762,3288.7,3287.8,0.79956184]
[1768395969670,4.57302476,3288.7,3287.8,0.79956184]
[1768395970266,1.36972962,3288.6,3287.8,0.79956184]
[1768395970472,0.91242714,3288.5,3287.6,0.79956184]
[1768395970704,0.91242714,3288.5,3287.3,3.84150348]
[1768395970904,0.91242714,3288.5,3287.4,3.04190362]
[1768395971211,0.91242714,3288.5,3287.5,0.79956184]
[1768395971496,0.91242714,3288.5,3287.1,0.002]
[1768395971497,0.91242714,3288.3,3287.1,0.80055884]
[1768395971680,0.91242714,3288.1,3287.3,3.04200545]
[1768395971884,0.417,3288.2,3287.4,3.84146762]
[1768395972813,0.417,3288.2,3287.4,0.79956184]
[1768395972987,0.417,3288.2,3287.4,3.84146789]
[1768395973178,0.91242714,3288.1,3287.1,0.000997]
[1768395973372,1.34948919,3288.0,3287.1,0.80055884]
[1768395973594,0.08502756,3289.5,3287.1,0.80055884]
[1768395973595,0.91242714,3288.8,3287.5,0.79956184]
[1768395973909,0.91242714,3289.1,3287.7,0.79956184]
[1768395974087,0.08502756,3290.2,3288.2,0.79956184]
[1768395974403,0.08502756,3290.2,3288.3,0.92927356]
[1768395974404,0.91242714,3290.0,3288.3,0.92927356]
[1768395974604,0.91242714,3290.0,3288.2,0.417]
[1768395974605,0.91242714,3289.9,3288.5,0.92927356]
[1768395974796,0.0304036,3289.8,3288.5,0.92927356]
[1768395976121,0.0304036,3289.8,3288.4,0.92927356]
[1768395976309,0.417,3289.7,3288.4,0.92927356]
[1768395976514,0.0304036,3289.6,3288.6,0.92927356]
[1768395976813,0.0304036,3289.6,3288.5,0.70114437]
[1768395976814,0.0304036,3289.6,3288.7,0.92927356]
[1768395977120,0.94283074,3289.6,3288.5,3.04088331]
[1768395977327,0.94283074,3289.6,3288.4,3.04096917]
[1768395977523,0.91242714,3289.5,3287.9,1.34627356]
[1768395977724,0.94283074,3289.4,3288.1,0.002]
[1768395977909,0.0304036,3289.4,3288.4,3.04096786]
[1768395978108,0.001,3289.5,3288.4,4.57845588]
[1768395978307,0.94283074,3289.4,3288.4,1.53748802]
[1768395978508,0.0304036,3289.4,3288.5,0.92927356]
[1768395978849,0.0314036,3289.5,3288.5,0.92927356]
[1768395979022,0.0314036,3289.5,3288.1,0.002]
[1768395979023,0.91242714,3289.4,3288.1,0.002]
[1768395979232,0.91242714,3289.2,3288.0,3.0413006]
[1768395979523,0.0304036,3289.1,3288.1,3.041251]
[1768395979718,0.0304036,3289.1,3288.2,4.0339124]
[1768395979914,0.0304036,3289.1,3288.3,0.99274007]
[1768395980524,0.0304036,3289.1,3288.0,1.32143844]
[1768395980824,0.9824135,3289.0,3288.0,0.39705702]
[1768395981003,0.9824135,3288.8,3288.0,0.39705702]
[1768395981205,0.0304036,3288.7,3288.1,0.34384908]
[1768395982807,0.0304036,3289.0,3288.1,0.34384908]
[1768395983008,1.0128171,3289.0,3287.8,3.96789029]
[1768395983208,1.0128171,3289.0,3287.8,0.92638142]
[1768395983426,1.0128171,3289.0,3287.8,3.96792023]
[1768395983724,0.001,3289.5,3287.9,0.95479597]
[1768395983894,0.418,3289.5,3287.9,0.95479597]
[1768395984096,0.418,3289.5,3288.1,0.92438142]
[1768395984097,0.0304036,3289.4,3288.1,0.92438142]
[1768395984301,0.418,3289.5,3289.0,0.02110864]
[1768395985208,0.001,3289.5,3289.0,0.02110864]
[1768395986904,0.9834135,3289.5,3289.0,0.02110864]
[1768395987159,0.9834135,3289.5,3288.3,3.04101996]
[1768395987341,0.417,3289.4,3288.5,0.92438142]
[1768395987905,0.417,3289.4,3287.9,0.92438142]
[1768395988520,0.417,3289.4,3288.3,0.92438142]
[1768395988859,0.417,3289.4,3288.4,3.04096316]
[1768395989051,0.9824135,3289.3,3288.4,3.04096316]
[1768395989236,0.9824135,3289.3,3288.4,0.60821197]
[1768395989432,0.9824135,3289.3,3288.1,7.00692148]
[1768395989637,0.9824135,3289.3,3288.2,0.92438142]
[1768395990156,0.9834135,3289.2,3288.1,6.08254006]
[1768395990922,0.9834135,3289.2,3288.0,3.04134203]
[1768395991122,0.9834135,3289.2,3288.2,3.04117754]
[1768395992064,0.001,3289.2,3288.2,3.96555896]
[1768395993432,0.001,3289.2,3288.2,3.9655241]
[1768395996002,0.9834135,3289.2,3287.9,0.92438142]
[1768395996301,0.9834135,3289.2,3287.8,0.002]
[1768395996600,0.9824135,3289.0,3287.8,0.002]
[1768395997875,0.9824135,3289.0,3287.8,0.92638142]
[1768395998078,0.9824135,3289.0,3287.8,0.002]
[1768395998885,0.9824135,3288.9,3287.8,0.002]
[1768395999382,0.9824135,3288.7,3287.8,0.002]
[1768396000897,0.9824135,3288.5,3287.8,0.002]
[1768396001859,0.9824135,3288.5,3287.0,0.92638142]
[1768396002058,0.9824135,3288.5,3287.1,3.0421534]
[1768396002506,0.9824135,3288.5,3287.2,3.04208467]
[1768396002809,0.9824135,3288.5,3287.3,3.04198845]
[1768396003016,0.9824135,3288.4,3287.1,6.08437642]
[1768396003163,0.001,3288.7,3287.4,0.92438142]
[1768396003361,0.418,3288.7,3287.4,0.92438142]
[1768396005067,0.418,3288.7,3287.6,0.92438142]
[1768396007879,0.418,3288.7,3287.7,3.04164005]
[1768396008511,0.418,3288.7,3287.7,3.96602147]
[1768396009703,0.418,3288.7,3287.8,0.92438142]
[1768396010304,0.418,3288.7,3288.0,0.92438142]
[1768396010720,0.001,3289.2,3288.2,0.90303921]
[1768396010901,0.417,3289.1,3288.0,0.8223758]
[1768396011102,0.417,3289.1,3288.2,0.90303921]
[1768396011278,0.92972232,3289.2,3288.1,0.49786656]
[1768396012282,0.92972232,3289.2,3288.1,1.40090577]
[1768396012477,0.92972232,3289.2,3288.2,6.98539429]
[1768396013108,0.92972232,3289.2,3288.2,3.94421675]
[1768396013425,0.92972232,3289.2,3288.2,7.59381125]
[1768396014109,0.92972232,3289.2,3288.2,0.60841696]
[1768396014312,0.92872232,3288.8,3287.4,3.04186398]
[1768396014508,0.92872232,3288.6,3287.8,0.002]
[1768396014712,0.92872232,3288.4,3287.8,0.002]
[1768396018699,0.92872232,3288.3,3287.2,3.04106869]
[1768396018905,0.92872232,3288.1,3287.2,6.08317139]
[1768396019107,0.92872232,3288.1,3287.2,3.04106869]
[1768396019940,0.92872232,3288.1,3287.0,0.90503921]
[1768396020119,0.92872232,3288.1,3287.1,3.04213156]
[1768396022237,0.92872232,3288.1,3287.0,0.002]
[1768396022435,0.92872232,3288.0,3287.0,0.74267915]
[1768396022821,0.92872232,3288.0,3287.0,1.64571836]
[1768396023414,0.92872232,3288.0,3287.0,0.74267915]
[1768396024546,0.92872232,3288.0,3287.1,3.04219524]
[1768396025756,3.04112587,3288.3,3287.2,0.90303921]
[1768396025757,0.92872232,3288.3,3287.2,0.90303921]
[1768396026058,0.92872232,3288.3,3287.3,0.69874297]